[Event "Titled Tuesday Blitz May 03 Early 2022"]
[White "Fiorito, Fabian"]
[Black "Dronavalli, Harika"]
[WhiteFideId "100200"]
[BlackFideId "5015197"]
[WhiteElo "2395"]
[BlackElo "2382"]
[Result "1/2-1/2"]
[Round "11"]
[TimeControl "180+1"]
[Date "2022.05.03"]
[WhiteClock "0:00:18"]
[BlackClock "0:00:33"]

1. d4 {[%clk 0:03:00]}  Nf6 {[%clk 0:02:59]} 2. Nc3 {[%clk 0:03:01]}  c5 {[%clk 0:02:57]} 3. d5 {[%clk 0:03:01]}  g6 {[%clk 0:02:58]} 4. e4 {[%clk 0:03:01]}  d6 {[%clk 0:02:58]} 5. Nf3 {[%clk 0:03:02]}  Bg7 {[%clk 0:02:59]} 6. Bc4 {[%clk 0:03:02]}  O-O {[%clk 0:02:58]} 7. O-O {[%clk 0:03:03]}  Na6 {[%clk 0:02:59]} 8. h3 {[%clk 0:03:02]}  Nc7 {[%clk 0:02:58]} 9. a4 {[%clk 0:03:03]}  b6 {[%clk 0:02:58]} 10. Re1 {[%clk 0:03:03]}  a6 {[%clk 0:02:55]} 11. e5 {[%clk 0:02:51]}  dxe5 {[%clk 0:02:48]} 12. Nxe5 {[%clk 0:02:51]}  Bb7 {[%clk 0:02:48]} 13. Nc6 {[%clk 0:02:35]}  Bxc6 {[%clk 0:02:48]} 14. dxc6 {[%clk 0:02:36]}  Qe8 {[%clk 0:02:48]} 15. Qf3 {[%clk 0:02:35]}  e5 {[%clk 0:02:36]} 16. Bg5 {[%clk 0:02:25]}  Ne6 {[%clk 0:01:44]} 17. Bxf6 {[%clk 0:01:37]}  Nd4 {[%clk 0:01:44]} 18. Qd5 {[%clk 0:01:34]}  Bxf6 {[%clk 0:01:42]} 19. Ne4 {[%clk 0:01:35]}  Bg7 {[%clk 0:01:22]} 20. c7 {[%clk 0:01:20]}  Qe7 {[%clk 0:01:11]} 21. Qb7 {[%clk 0:00:46]}  Rac8 {[%clk 0:00:56]} 22. Rac1 {[%clk 0:00:43]}  Qxc7 {[%clk 0:00:54]} 23. Qxc7 {[%clk 0:00:37]}  Rxc7 {[%clk 0:00:55]} 24. c3 {[%clk 0:00:36]}  Nc6 {[%clk 0:00:47]} 25. Bxa6 {[%clk 0:00:36]}  Na5 {[%clk 0:00:45]} 26. Rcd1 {[%clk 0:00:35]}  Ra7 {[%clk 0:00:32]} 27. Bb5 {[%clk 0:00:34]}  c4 {[%clk 0:00:26]} 28. Rd6 {[%clk 0:00:25]}  Rb7 {[%clk 0:00:26]} 29. Red1 {[%clk 0:00:24]}  h6 {[%clk 0:00:26]} 30. R6d5 {[%clk 0:00:14]}  f5 {[%clk 0:00:22]} 31. Nd6 {[%clk 0:00:14]}  Rc7 {[%clk 0:00:21]} 32. f3 {[%clk 0:00:08]}  Kh7 {[%clk 0:00:20]} 33. Ba6 {[%clk 0:00:07]}  Ra8 {[%clk 0:00:19]} 34. Bb5 {[%clk 0:00:07]}  Rb8 {[%clk 0:00:18]} 35. Ne8 {[%clk 0:00:07]}  Re7 {[%clk 0:00:17]} 36. Nd6 {[%clk 0:00:04]}  h5 {[%clk 0:00:15]} 37. Nxc4 {[%clk 0:00:04]}  Nxc4 {[%clk 0:00:15]} 38. Bxc4 {[%clk 0:00:05]}  Rc7 {[%clk 0:00:16]} 39. b3 {[%clk 0:00:05]}  e4 {[%clk 0:00:16]} 40. fxe4 {[%clk 0:00:06]}  fxe4 {[%clk 0:00:17]} 41. Re1 {[%clk 0:00:07]}  Re7 {[%clk 0:00:17]} 42. Re3 {[%clk 0:00:04]}  Bh6 {[%clk 0:00:17]} 43. Re2 {[%clk 0:00:04]}  Bg7 {[%clk 0:00:17]} 44. Re3 {[%clk 0:00:03]}  Rf8 {[%clk 0:00:15]} 45. Re2 {[%clk 0:00:01]}  Bxc3 {[%clk 0:00:15]} 46. Kh2 {[%clk 0:00:02]}  Bb4 {[%clk 0:00:15]} 47. Kg1 {[%clk 0:00:03]}  Bc5+ {[%clk 0:00:16]} 48. Kh2 {[%clk 0:00:03]}  Bb4 {[%clk 0:00:15]} 49. Kg1 {[%clk 0:00:03]}  e3 {[%clk 0:00:16]} 50. Kh2 {[%clk 0:00:04]}  Rf2 {[%clk 0:00:15]} 51. Rd1 {[%clk 0:00:05]}  Rxe2 {[%clk 0:00:16]} 52. Bxe2 {[%clk 0:00:06]}  Bd2 {[%clk 0:00:17]} 53. g3 {[%clk 0:00:04]}  Rf7 {[%clk 0:00:16]} 54. Rf1 {[%clk 0:00:05]}  Rc7 {[%clk 0:00:15]} 55. Bc4 {[%clk 0:00:04]}  Kg7 {[%clk 0:00:16]} 56. Kg2 {[%clk 0:00:05]}  Re7 {[%clk 0:00:16]} 57. Kf3 {[%clk 0:00:05]}  Bb4 {[%clk 0:00:16]} 58. Ke2 {[%clk 0:00:06]}  Bc5 {[%clk 0:00:16]} 59. Rd1 {[%clk 0:00:07]}  Ra7 {[%clk 0:00:16]} 60. Rd5 {[%clk 0:00:07]}  Re7 {[%clk 0:00:16]} 61. Rd1 {[%clk 0:00:07]}  Re5 {[%clk 0:00:16]} 62. Rd5 {[%clk 0:00:06]}  Rxd5 {[%clk 0:00:16]} 63. Bxd5 {[%clk 0:00:07]}  Kf6 {[%clk 0:00:17]} 64. Kf3 {[%clk 0:00:07]}  g5 {[%clk 0:00:17]} 65. Bc4 {[%clk 0:00:07]}  Ke5 {[%clk 0:00:17]} 66. Ke2 {[%clk 0:00:07]}  Kd4 {[%clk 0:00:18]} 67. Bf7 {[%clk 0:00:07]}  h4 {[%clk 0:00:17]} 68. gxh4 {[%clk 0:00:08]}  gxh4 {[%clk 0:00:18]} 69. Bc4 {[%clk 0:00:08]}  Ke4 {[%clk 0:00:19]} 70. Be6 {[%clk 0:00:08]}  Kf4 {[%clk 0:00:19]} 71. Bd7 {[%clk 0:00:09]}  Bb4 {[%clk 0:00:20]} 72. Be6 {[%clk 0:00:09]}  Bd2 {[%clk 0:00:20]} 73. Bc8 {[%clk 0:00:10]}  Ke5 {[%clk 0:00:20]} 74. Bd7 {[%clk 0:00:11]}  Kd4 {[%clk 0:00:21]} 75. Be6 {[%clk 0:00:11]}  Kc3 {[%clk 0:00:21]} 76. Bf7 {[%clk 0:00:12]}  Kb4 {[%clk 0:00:21]} 77. Be6 {[%clk 0:00:12]}  Kc5 {[%clk 0:00:22]} 78. Bf7 {[%clk 0:00:12]}  Kd6 {[%clk 0:00:23]} 79. Bc4 {[%clk 0:00:12]}  Ke5 {[%clk 0:00:23]} 80. Bb5 {[%clk 0:00:13]}  Kf4 {[%clk 0:00:24]} 81. Bd7 {[%clk 0:00:13]}  Bb4 {[%clk 0:00:25]} 82. Be6 {[%clk 0:00:14]}  Bc5 {[%clk 0:00:25]} 83. Bd7 {[%clk 0:00:14]}  Ke5 {[%clk 0:00:25]} 84. Be8 {[%clk 0:00:14]}  Ke6 {[%clk 0:00:26]} 85. Bb5 {[%clk 0:00:14]}  Kf6 {[%clk 0:00:26]} 86. Bc4 {[%clk 0:00:14]}  Ke7 {[%clk 0:00:26]} 87. Bd5 {[%clk 0:00:15]}  Kd6 {[%clk 0:00:27]} 88. Ba8 {[%clk 0:00:14]}  Ke5 {[%clk 0:00:28]} 89. Bb7 {[%clk 0:00:15]}  Kf4 {[%clk 0:00:28]} 90. Bc8 {[%clk 0:00:15]}  Ke4 {[%clk 0:00:28]} 91. Be6 {[%clk 0:00:16]}  Kd4 {[%clk 0:00:29]} 92. Bg8 {[%clk 0:00:16]}  Bd6 {[%clk 0:00:29]} 93. Be6 {[%clk 0:00:16]}  Bf8 {[%clk 0:00:30]} 94. Bc8 {[%clk 0:00:16]}  Bh6 {[%clk 0:00:31]} 95. Be6 {[%clk 0:00:16]}  Kc3 {[%clk 0:00:31]} 96. Bc4 {[%clk 0:00:16]}  Kb4 {[%clk 0:00:32]} 97. Be6 {[%clk 0:00:16]}  Kc5 {[%clk 0:00:32]} 98. Bc8 {[%clk 0:00:16]}  Bg5 {[%clk 0:00:31]} 99. Be6 {[%clk 0:00:16]}  Kd4 {[%clk 0:00:31]} 100. Bc8 {[%clk 0:00:13]}  Ke5 {[%clk 0:00:32]} 101. Bd7 {[%clk 0:00:14]}  Kd6 {[%clk 0:00:32]} 102. Bg4 {[%clk 0:00:13]}  Bf4 {[%clk 0:00:32]} 103. Bf3 {[%clk 0:00:14]}  Kc5 {[%clk 0:00:32]} 104. Bg4 {[%clk 0:00:14]}  Bg5 {[%clk 0:00:33]} 105. Be6 {[%clk 0:00:14]}  Kb4 {[%clk 0:00:29]} 106. Bf7 {[%clk 0:00:14]}  Kc3 {[%clk 0:00:29]} 107. Be6 {[%clk 0:00:14]}  Bf4 {[%clk 0:00:29]} 108. Bf7 {[%clk 0:00:14]}  Bh6 {[%clk 0:00:30]} 109. Be6 {[%clk 0:00:15]}  Kb4 {[%clk 0:00:30]} 110. Bf7 {[%clk 0:00:16]}  Kc5 {[%clk 0:00:31]} 111. Be6 {[%clk 0:00:16]}  Kd6 {[%clk 0:00:32]} 112. Bg4 {[%clk 0:00:16]}  Kd5 {[%clk 0:00:31]} 113. Bc8 {[%clk 0:00:17]}  Kd4 {[%clk 0:00:31]} 114. Bg4 {[%clk 0:00:17]}  Bf8 {[%clk 0:00:32]} 115. Be6 {[%clk 0:00:18]}  Bc5 {[%clk 0:00:32]} 116. Bd7 {[%clk 0:00:18]}  Kd5 {[%clk 0:00:32]} 117. Bg4 {[%clk 0:00:18]}  Kd6 {[%clk 0:00:33]} 118. Bf5 {[%clk 0:00:18]}  Kc7 {[%clk 0:00:33]} 1/2-1/2


[Site "https://www.chess.com"]

[Event "Titled Tuesday Blitz May 03 Early 2022"]
[White "Harish, Neeraj"]
[Black "Rom, Jasper"]
[WhiteFideId "30958130"]
[BlackFideId "2023733"]
[WhiteElo "1574"]
[BlackElo "2233"]
[Result "1/2-1/2"]
[Round "11"]
[TimeControl "180+1"]
[Date "2022.05.03"]
[WhiteClock "0:00:03"]
[BlackClock "0:00:03"]

1. e4 {[%clk 0:03:00]}  e6 {[%clk 0:02:58]} 2. d4 {[%clk 0:03:00]}  d5 {[%clk 0:02:58]} 3. Nc3 {[%clk 0:02:55]}  Nf6 {[%clk 0:02:57]} 4. Bg5 {[%clk 0:02:50]}  Bb4 {[%clk 0:02:55]} 5. e5 {[%clk 0:02:47]}  h6 {[%clk 0:02:55]} 6. Be3 {[%clk 0:02:47]}  Ne4 {[%clk 0:02:54]} 7. Qg4 {[%clk 0:02:47]}  Kf8 {[%clk 0:02:52]} 8. Bd3 {[%clk 0:02:43]}  Nxc3 {[%clk 0:02:48]} 9. a3 {[%clk 0:02:41]}  Ba5 {[%clk 0:02:38]} 10. Bd2 {[%clk 0:02:40]}  Na4 {[%clk 0:02:33]} 11. Bxa5 {[%clk 0:02:38]}  Nxb2 {[%clk 0:02:33]} 12. Bb4+ {[%clk 0:02:36]}  Kg8 {[%clk 0:02:32]} 13. Be2 {[%clk 0:02:22]}  Nc6 {[%clk 0:02:26]} 14. Bc3 {[%clk 0:02:15]}  Na4 {[%clk 0:02:25]} 15. Bd2 {[%clk 0:02:09]}  Ne7 {[%clk 0:02:08]} 16. Nh3 {[%clk 0:02:09]}  Bd7 {[%clk 0:01:59]} 17. Nf4 {[%clk 0:02:07]}  Kf8 {[%clk 0:01:43]} 18. Nh5 {[%clk 0:02:06]}  Ng6 {[%clk 0:01:35]} 19. Bd3 {[%clk 0:02:00]}  Qh4 {[%clk 0:01:24]} 20. Qf3 {[%clk 0:01:56]}  Qxd4 {[%clk 0:01:06]} 21. Bxg6 {[%clk 0:01:52]}  Qxa1+ {[%clk 0:01:04]} 22. Ke2 {[%clk 0:01:28]}  Qxe5+ {[%clk 0:01:03]} 23. Kd1 {[%clk 0:01:18]}  Qa1+ {[%clk 0:01:01]} 24. Ke2 {[%clk 0:01:18]}  Qe5+ {[%clk 0:01:00]} 25. Kd1 {[%clk 0:01:18]}  Be8 {[%clk 0:01:00]} 26. Re1 {[%clk 0:01:13]}  Qa1+ {[%clk 0:00:38]} 27. Ke2 {[%clk 0:01:13]}  Bb5+ {[%clk 0:00:27]} 28. Bd3 {[%clk 0:00:52]}  Bxd3+ {[%clk 0:00:27]} 29. cxd3 {[%clk 0:00:44]}  Qxa3 {[%clk 0:00:24]} 30. Qg4 {[%clk 0:00:32]}  Nc3+ {[%clk 0:00:13]} 31. Kf1 {[%clk 0:00:29]}  Rg8 {[%clk 0:00:12]} 32. Rc1 {[%clk 0:00:24]}  Na2 {[%clk 0:00:12]} 33. Ra1 {[%clk 0:00:20]}  Qxd3+ {[%clk 0:00:12]} 34. Ke1 {[%clk 0:00:20]}  Qe4+ {[%clk 0:00:08]} 35. Qxe4 {[%clk 0:00:19]}  dxe4 {[%clk 0:00:09]} 36. Rxa2 {[%clk 0:00:20]}  a6 {[%clk 0:00:09]} 37. Bb4+ {[%clk 0:00:20]}  Ke8 {[%clk 0:00:08]} 38. Ng3 {[%clk 0:00:21]}  f5 {[%clk 0:00:08]} 39. Ne2 {[%clk 0:00:21]}  Kf7 {[%clk 0:00:08]} 40. Rc2 {[%clk 0:00:19]}  Rgc8 {[%clk 0:00:08]} 41. Nd4 {[%clk 0:00:19]}  b6 {[%clk 0:00:06]} 42. Nc6 {[%clk 0:00:18]}  a5 {[%clk 0:00:07]} 43. Bd2 {[%clk 0:00:17]}  a4 {[%clk 0:00:06]} 44. Bf4 {[%clk 0:00:16]}  a3 {[%clk 0:00:06]} 45. Ra2 {[%clk 0:00:16]}  b5 {[%clk 0:00:05]} 46. Kd2 {[%clk 0:00:15]}  Ra6 {[%clk 0:00:05]} 47. Ne5+ {[%clk 0:00:14]}  Ke8 {[%clk 0:00:04]} 48. Kc3 {[%clk 0:00:15]}  c5 {[%clk 0:00:04]} 49. Ng6 {[%clk 0:00:12]}  Kf7 {[%clk 0:00:04]} 50. Ne5+ {[%clk 0:00:12]}  Kf6 {[%clk 0:00:04]} 51. f3 {[%clk 0:00:12]}  g5 {[%clk 0:00:04]} 52. Bg3 {[%clk 0:00:09]}  f4 {[%clk 0:00:04]} 53. Ng4+ {[%clk 0:00:09]}  Kf5 {[%clk 0:00:04]} 54. Be1 {[%clk 0:00:06]}  e3 {[%clk 0:00:04]} 55. Nxh6+ {[%clk 0:00:07]}  Kg6 {[%clk 0:00:04]} 56. Ng4 {[%clk 0:00:07]}  b4+ {[%clk 0:00:04]} 57. Kb3 {[%clk 0:00:08]}  Rb6 {[%clk 0:00:04]} 58. Ne5+ {[%clk 0:00:06]}  Kf5 {[%clk 0:00:03]} 59. Nc4 {[%clk 0:00:07]}  Rb5 {[%clk 0:00:03]} 60. g3 {[%clk 0:00:07]}  e5 {[%clk 0:00:03]} 61. h4 {[%clk 0:00:06]}  e4 {[%clk 0:00:02]} 62. fxe4+ {[%clk 0:00:06]}  Kxe4 {[%clk 0:00:02]} 63. hxg5 {[%clk 0:00:07]}  Kd3 {[%clk 0:00:02]} 64. gxf4 {[%clk 0:00:06]}  e2 {[%clk 0:00:02]} 65. Rd2+ {[%clk 0:00:06]}  Ke4 {[%clk 0:00:02]} 66. Rxe2+ {[%clk 0:00:06]}  Kd5 {[%clk 0:00:02]} 67. Re5+ {[%clk 0:00:06]}  Kc6 {[%clk 0:00:02]} 68. Re6+ {[%clk 0:00:06]}  Kb7 {[%clk 0:00:03]} 69. Nd6+ {[%clk 0:00:06]}  Kc6 {[%clk 0:00:03]} 70. Nxc8+ {[%clk 0:00:05]}  Kd5 {[%clk 0:00:03]} 71. Rd6+ {[%clk 0:00:05]}  Ke4 {[%clk 0:00:03]} 72. Re6+ {[%clk 0:00:05]}  Kd5 {[%clk 0:00:03]} 73. Re5+ {[%clk 0:00:05]}  Kc6 {[%clk 0:00:03]} 74. Ne7+ {[%clk 0:00:04]}  Kd6 {[%clk 0:00:03]} 75. Nd5 {[%clk 0:00:02]}  c4+ {[%clk 0:00:04]} 76. Kxc4 {[%clk 0:00:01]}  Rc5+ {[%clk 0:00:04]} 77. Kb3 {[%clk 0:00:02]}  Rb5 {[%clk 0:00:04]} 78. Nf6 {[%clk 0:00:03]}  Rxe5 {[%clk 0:00:03]} 79. fxe5+ {[%clk 0:00:04]}  Ke6 {[%clk 0:00:02]} 80. Kxb4 {[%clk 0:00:04]}  Kxe5 {[%clk 0:00:02]} 81. Bc3+ {[%clk 0:00:05]}  Kf5 {[%clk 0:00:01]} 82. Kxa3 {[%clk 0:00:06]}  Kxg5 {[%clk 0:00:02]} 83. Kb4 {[%clk 0:00:07]}  Kf5 {[%clk 0:00:03]} 84. Kc5 {[%clk 0:00:08]}  Ke6 {[%clk 0:00:03]} 85. Kd4 {[%clk 0:00:08]}  Kf5 {[%clk 0:00:03]} 86. Kd5 {[%clk 0:00:09]}  Kf4 {[%clk 0:00:03]} 87. Bd4 {[%clk 0:00:08]}  Kf5 {[%clk 0:00:03]} 88. Ne4 {[%clk 0:00:08]}  Kf4 {[%clk 0:00:03]} 89. Be3+ {[%clk 0:00:08]}  Kf5 {[%clk 0:00:03]} 90. Bd2 {[%clk 0:00:04]}  Kg4 {[%clk 0:00:02]} 91. Ke5 {[%clk 0:00:04]}  Kf3 {[%clk 0:00:02]} 92. Nc3 {[%clk 0:00:04]}  Kg4 {[%clk 0:00:02]} 93. Ke4 {[%clk 0:00:04]}  Kg3 {[%clk 0:00:02]} 94. Ne2+ {[%clk 0:00:03]}  Kg2 {[%clk 0:00:02]} 95. Ke3 {[%clk 0:00:03]}  Kf1 {[%clk 0:00:02]} 96. Nd4 {[%clk 0:00:02]}  Kg2 {[%clk 0:00:02]} 97. Nf3 {[%clk 0:00:02]}  Kf1 {[%clk 0:00:01]} 98. Nh2+ {[%clk 0:00:01]}  Kg2 {[%clk 0:00:02]} 99. Ng4 {[%clk 0:00:01]}  Kf1 {[%clk 0:00:02]} 100. Kf3 {[%clk 0:00:01]}  Kg1 {[%clk 0:00:02]} 101. Ne3 {[%clk 0:00:01]}  Kh1 {[%clk 0:00:02]} 102. Ng4 {[%clk 0:00:02]}  Kg1 {[%clk 0:00:02]} 103. Be3+ {[%clk 0:00:01]}  Kh1 {[%clk 0:00:03]} 104. Nf2+ {[%clk 0:00:01]}  Kg1 {[%clk 0:00:03]} 105. Bf4 {[%clk 0:00:02]}  Kf1 {[%clk 0:00:03]} 106. Bd2 {[%clk 0:00:02]}  Kg1 {[%clk 0:00:03]} 107. Nh3+ {[%clk 0:00:02]}  Kh1 {[%clk 0:00:03]} 108. Kg3 {[%clk 0:00:03]} 1/2-1/2


[Site "https://www.chess.com"]

[Event "Titled Tuesday Blitz May 03 Early 2022"]
[White "Hart, Braeden"]
[Black "Stanisz, Patryk"]
[WhiteFideId "30962587"]
[BlackFideId "1123106"]
[WhiteElo "2509"]
[BlackElo "1833"]
[Result "1-0"]
[Round "11"]
[TimeControl "180+1"]
[Date "2022.05.03"]
[WhiteClock "0:01:36"]
[BlackClock "0:00:06"]

1. e4 {[%clk 0:03:00]}  c5 {[%clk 0:02:59]} 2. Nf3 {[%clk 0:03:00]}  Nc6 {[%clk 0:02:59]} 3. b4 {[%clk 0:03:01]}  cxb4 {[%clk 0:02:58]} 4. d4 {[%clk 0:03:01]}  d5 {[%clk 0:02:38]} 5. exd5 {[%clk 0:03:02]}  Qxd5 {[%clk 0:02:36]} 6. c4 {[%clk 0:03:02]}  bxc3 {[%clk 0:02:34]} 7. Nxc3 {[%clk 0:03:02]}  Qa5 {[%clk 0:02:10]} 8. Bd2 {[%clk 0:03:02]}  e6 {[%clk 0:02:10]} 9. Bb5 {[%clk 0:03:01]}  Bb4 {[%clk 0:02:07]} 10. O-O {[%clk 0:03:01]}  Bxc3 {[%clk 0:02:05]} 11. Bxc6+ {[%clk 0:03:01]}  bxc6 {[%clk 0:02:02]} 12. Qc2 {[%clk 0:03:02]}  Ne7 {[%clk 0:01:48]} 13. Bxc3 {[%clk 0:03:02]}  Qc7 {[%clk 0:01:46]} 14. d5 {[%clk 0:02:52]}  exd5 {[%clk 0:01:37]} 15. Bxg7 {[%clk 0:02:49]}  Rg8 {[%clk 0:01:35]} 16. Be5 {[%clk 0:02:47]}  Qd7 {[%clk 0:01:23]} 17. Rfe1 {[%clk 0:02:46]}  Kf8 {[%clk 0:00:56]} 18. Qxh7 {[%clk 0:02:29]}  Qg4 {[%clk 0:00:45]} 19. Qh6+ {[%clk 0:02:20]}  Ke8 {[%clk 0:00:37]} 20. Bg3 {[%clk 0:02:19]}  Be6 {[%clk 0:00:33]} 21. Ne5 {[%clk 0:02:19]}  Qg7 {[%clk 0:00:30]} 22. Qc1 {[%clk 0:02:16]}  Rc8 {[%clk 0:00:29]} 23. Rb1 {[%clk 0:02:06]}  Ng6 {[%clk 0:00:27]} 24. Nxc6 {[%clk 0:01:53]}  Nh4 {[%clk 0:00:16]} 25. Qc5 {[%clk 0:01:51]}  Nf5 {[%clk 0:00:13]} 26. Rb7 {[%clk 0:01:44]}  Qf8 {[%clk 0:00:13]} 27. Qxd5 {[%clk 0:01:38]}  Qd6 {[%clk 0:00:05]} 28. Bxd6 {[%clk 0:01:36]}  Nxd6 {[%clk 0:00:06]} 29. Rxe6+ {[%clk 0:01:36]} 1-0


[Site "https://www.chess.com"]

[Event "Titled Tuesday Blitz May 03 Early 2022"]
[White "Hovhannisyan, Robert"]
[Black "Meshkovs, Nikita"]
[WhiteFideId "13302507"]
[BlackFideId "11602740"]
[WhiteElo "2570"]
[BlackElo "2506"]
[Result "1-0"]
[Round "11"]
[TimeControl "180+1"]
[Date "2022.05.03"]
[WhiteClock "0:01:42"]
[BlackClock "0:01:00"]

1. e4 {[%clk 0:03:00]}  e5 {[%clk 0:02:59]} 2. Nc3 {[%clk 0:03:00]}  Nf6 {[%clk 0:02:54]} 3. Nf3 {[%clk 0:03:00]}  Nc6 {[%clk 0:02:54]} 4. d4 {[%clk 0:03:00]}  exd4 {[%clk 0:02:54]} 5. Nxd4 {[%clk 0:03:01]}  Bb4 {[%clk 0:02:52]} 6. Nxc6 {[%clk 0:03:01]}  bxc6 {[%clk 0:02:53]} 7. Bd3 {[%clk 0:03:02]}  d5 {[%clk 0:02:53]} 8. exd5 {[%clk 0:03:03]}  O-O {[%clk 0:02:53]} 9. O-O {[%clk 0:03:03]}  Bg4 {[%clk 0:02:54]} 10. f3 {[%clk 0:03:03]}  Bh5 {[%clk 0:02:54]} 11. Bg5 {[%clk 0:03:00]}  cxd5 {[%clk 0:02:32]} 12. Bxf6 {[%clk 0:02:57]}  Qxf6 {[%clk 0:02:24]} 13. Nxd5 {[%clk 0:02:56]}  Bc5+ {[%clk 0:02:25]} 14. Kh1 {[%clk 0:02:56]}  Qxb2 {[%clk 0:02:25]} 15. Rb1 {[%clk 0:02:42]}  Qxa2 {[%clk 0:02:15]} 16. Rb5 {[%clk 0:02:19]}  c6 {[%clk 0:01:24]} 17. Nc3 {[%clk 0:01:52]}  Qa3 {[%clk 0:01:23]} 18. Nb1 {[%clk 0:01:51]}  Qxd3 {[%clk 0:01:00]} 19. Qxd3 {[%clk 0:01:50]}  cxb5 {[%clk 0:01:00]} 20. Qd5 {[%clk 0:01:42]} 1-0


[Site "https://www.chess.com"]

[Event "Titled Tuesday Blitz May 03 Early 2022"]
[White "Iljin, Timofey"]
[Black "Nguyen, Hong Anh"]
[WhiteFideId "14110180"]
[BlackFideId "12406732"]
[WhiteElo "2396"]
[BlackElo "2016"]
[Result "1/2-1/2"]
[Round "11"]
[TimeControl "180+1"]
[Date "2022.05.03"]
[WhiteClock "0:00:06"]
[BlackClock "0:00:23"]

1. d4 {[%clk 0:03:00]}  Nf6 {[%clk 0:02:58]} 2. c4 {[%clk 0:03:01]}  g6 {[%clk 0:02:58]} 3. Nc3 {[%clk 0:03:02]}  d5 {[%clk 0:02:59]} 4. cxd5 {[%clk 0:03:03]}  Nxd5 {[%clk 0:03:00]} 5. e4 {[%clk 0:03:04]}  Nxc3 {[%clk 0:03:00]} 6. bxc3 {[%clk 0:03:04]}  Bg7 {[%clk 0:03:01]} 7. Nf3 {[%clk 0:03:05]}  c5 {[%clk 0:03:02]} 8. Be2 {[%clk 0:03:06]}  O-O {[%clk 0:03:01]} 9. O-O {[%clk 0:03:06]}  Nc6 {[%clk 0:03:00]} 10. Be3 {[%clk 0:03:06]}  Qc7 {[%clk 0:02:56]} 11. Rc1 {[%clk 0:03:05]}  Rd8 {[%clk 0:02:55]} 12. d5 {[%clk 0:03:05]}  Bg4 {[%clk 0:02:27]} 13. Bxc5 {[%clk 0:02:58]}  Ne5 {[%clk 0:02:09]} 14. Bd4 {[%clk 0:02:47]}  Bxf3 {[%clk 0:02:07]} 15. Bxf3 {[%clk 0:02:48]}  e6 {[%clk 0:02:06]} 16. dxe6 {[%clk 0:02:33]}  fxe6 {[%clk 0:01:59]} 17. Bg4 {[%clk 0:02:27]}  Qe7 {[%clk 0:01:15]} 18. Qe2 {[%clk 0:02:03]}  Nxg4 {[%clk 0:01:09]} 19. Bxg7 {[%clk 0:02:04]}  Nxh2 {[%clk 0:01:07]} 20. Kxh2 {[%clk 0:01:53]}  Qxg7 {[%clk 0:01:03]} 21. Qg4 {[%clk 0:01:46]}  Rd6 {[%clk 0:01:00]} 22. Rcd1 {[%clk 0:01:34]}  Rad8 {[%clk 0:00:57]} 23. Rxd6 {[%clk 0:01:19]}  Rxd6 {[%clk 0:00:57]} 24. Qg3 {[%clk 0:01:20]}  Qd7 {[%clk 0:00:51]} 25. Re1 {[%clk 0:00:06]}  a6 {[%clk 0:00:47]} 26. Qe5 {[%clk 0:00:05]}  Rc6 {[%clk 0:00:44]} 27. Re3 {[%clk 0:00:05]}  Qe7 {[%clk 0:00:35]} 28. Rf3 {[%clk 0:00:04]}  Qc7 {[%clk 0:00:30]} 29. Qxc7 {[%clk 0:00:02]}  Rxc7 {[%clk 0:00:30]} 30. Rd3 {[%clk 0:00:03]}  Kf7 {[%clk 0:00:29]} 31. e5 {[%clk 0:00:03]}  Ke7 {[%clk 0:00:28]} 32. f4 {[%clk 0:00:04]}  Rc4 {[%clk 0:00:28]} 33. g3 {[%clk 0:00:03]}  Ra4 {[%clk 0:00:26]} 34. Rd2 {[%clk 0:00:03]}  Ra3 {[%clk 0:00:26]} 35. Rc2 {[%clk 0:00:03]}  Ra4 {[%clk 0:00:23]} 36. Kh3 {[%clk 0:00:04]}  Rc4 {[%clk 0:00:23]} 37. Kg4 {[%clk 0:00:04]}  b5 {[%clk 0:00:21]} 38. a3 {[%clk 0:00:03]}  a5 {[%clk 0:00:21]} 39. Rb2 {[%clk 0:00:03]}  Rc5 {[%clk 0:00:21]} 40. Kg5 {[%clk 0:00:02]}  Rxc3 {[%clk 0:00:18]} 41. Rxb5 {[%clk 0:00:02]}  Rxg3+ {[%clk 0:00:19]} 42. Kh6 {[%clk 0:00:01]}  Rxa3 {[%clk 0:00:19]} 43. Kxh7 {[%clk 0:00:01]}  Rf3 {[%clk 0:00:17]} 44. Rb7+ {[%clk 0:00:02]}  Kd8 {[%clk 0:00:17]} 45. Kxg6 {[%clk 0:00:03]}  Rxf4 {[%clk 0:00:18]} 46. Ra7 {[%clk 0:00:03]}  a4 {[%clk 0:00:18]} 47. Kg5 {[%clk 0:00:03]}  Rf5+ {[%clk 0:00:18]} 48. Kg4 {[%clk 0:00:03]}  Rxe5 {[%clk 0:00:18]} 49. Rxa4 {[%clk 0:00:04]}  Ke7 {[%clk 0:00:19]} 50. Kf3 {[%clk 0:00:05]}  Kf6 {[%clk 0:00:19]} 51. Re4 {[%clk 0:00:05]}  Ra5 {[%clk 0:00:18]} 52. Kf2 {[%clk 0:00:04]}  e5 {[%clk 0:00:19]} 53. Rb4 {[%clk 0:00:04]}  Kf5 {[%clk 0:00:19]} 54. Ke2 {[%clk 0:00:04]}  Ra3 {[%clk 0:00:19]} 55. Kd2 {[%clk 0:00:04]}  Rh3 {[%clk 0:00:19]} 56. Ke2 {[%clk 0:00:04]}  Rh2+ {[%clk 0:00:19]} 57. Ke3 {[%clk 0:00:05]}  Rh3+ {[%clk 0:00:19]} 58. Ke2 {[%clk 0:00:05]}  Rc3 {[%clk 0:00:19]} 59. Kd2 {[%clk 0:00:06]}  Ra3 {[%clk 0:00:19]} 60. Ke2 {[%clk 0:00:06]}  Ra2+ {[%clk 0:00:20]} 61. Ke3 {[%clk 0:00:06]}  Ke6 {[%clk 0:00:20]} 62. Rb5 {[%clk 0:00:06]}  Kd6 {[%clk 0:00:20]} 63. Ke4 {[%clk 0:00:05]}  Ra4+ {[%clk 0:00:20]} 64. Ke3 {[%clk 0:00:05]}  Rd4 {[%clk 0:00:21]} 65. Rb8 {[%clk 0:00:04]}  Rh4 {[%clk 0:00:20]} 66. Rb5 {[%clk 0:00:04]}  Ke6 {[%clk 0:00:20]} 67. Ke2 {[%clk 0:00:04]}  Kf5 {[%clk 0:00:21]} 68. Kd2 {[%clk 0:00:04]}  Kf4 {[%clk 0:00:21]} 69. Ke2 {[%clk 0:00:04]}  Rh2+ {[%clk 0:00:21]} 70. Ke1 {[%clk 0:00:04]}  e4 {[%clk 0:00:22]} 71. Rb3 {[%clk 0:00:04]}  Rh1+ {[%clk 0:00:21]} 72. Ke2 {[%clk 0:00:04]}  Rh2+ {[%clk 0:00:22]} 73. Ke1 {[%clk 0:00:05]}  Rc2 {[%clk 0:00:21]} 74. Ra3 {[%clk 0:00:05]}  Rb2 {[%clk 0:00:21]} 75. Rc3 {[%clk 0:00:05]}  Ra2 {[%clk 0:00:22]} 76. Rb3 {[%clk 0:00:05]}  Ke5 {[%clk 0:00:22]} 77. Rc3 {[%clk 0:00:04]}  Kd4 {[%clk 0:00:22]} 78. Rh3 {[%clk 0:00:05]}  Rc2 {[%clk 0:00:22]} 79. Rg3 {[%clk 0:00:05]}  Rh2 {[%clk 0:00:22]} 80. Ra3 {[%clk 0:00:05]}  Rh1+ {[%clk 0:00:22]} 81. Ke2 {[%clk 0:00:05]}  Rh2+ {[%clk 0:00:22]} 82. Ke1 {[%clk 0:00:05]}  Kc4 {[%clk 0:00:22]} 83. Re3 {[%clk 0:00:05]}  Kd4 {[%clk 0:00:23]} 84. Ra3 {[%clk 0:00:06]} 1/2-1/2


[Site "https://www.chess.com"]